bitfinex/quotes_BTCUSD_20241202
["timestamp","ask_amount","ask_price","bid_price","bid_amount"]
[1733152030778,0.00627853,96350.0,96349.0,0.00790095]
[1733152031022,0.00680835,96350.0,96349.0,0.00790095]
[1733152031234,0.11465186,96350.0,96349.0,0.00790095]
[1733152031453,0.23718168,96350.0,96349.0,0.00790095]
[1733152031674,0.43665186,96350.0,96349.0,0.00790095]
[1733152031881,0.61386553,96345.0,96344.0,0.0017236]
[1733152032097,0.71671074,96345.0,96344.0,0.0017236]
[1733152032312,0.7222116,96345.0,96344.0,0.0017236]
[1733152033454,0.5222116,96345.0,96344.0,0.0017236]
[1733152033752,0.7222116,96345.0,96344.0,0.0017236]
[1733152034207,0.7222116,96345.0,96344.0,0.0047236]
[1733152034419,0.5222116,96345.0,96344.0,0.0047236]
[1733152034855,0.1146246,96345.0,96344.0,0.0047236]
[1733152035062,0.3146246,96345.0,96344.0,0.0047236]
[1733152035545,0.3146246,96345.0,96319.0,0.207641]
[1733152035546,0.00627853,96319.0,96317.0,0.041568]
[1733152035995,0.08337853,96319.0,96306.0,0.20767]
[1733152036205,0.08337853,96319.0,96315.0,0.041568]
[1733152036426,0.08877577,96319.0,96315.0,0.041568]
[1733152036658,0.08877577,96319.0,96306.0,0.20767]
[1733152036888,0.08877577,96319.0,96314.0,0.041578]
[1733152037155,0.08977577,96319.0,96318.0,0.01131213]
[1733152037368,0.08877577,96319.0,96318.0,0.00231213]
[1733152037587,0.00539724,96319.0,96318.0,0.00931213]
[1733152037833,0.00539724,96319.0,96318.0,0.01714952]
[1733152038043,0.0807,96346.0,96318.0,0.01714952]
[1733152038044,0.0807,96357.0,96329.0,0.207621]
[1733152038261,0.00627853,96349.0,96330.0,0.10468212]
[1733152038478,0.00627853,96347.0,96346.0,0.207585]
[1733152038734,0.00627853,96356.0,96346.0,0.207585]
[1733152038970,0.15,96370.0,96351.0,0.207574]
[1733152039200,8e-07,96352.0,96351.0,0.33525568]
[1733152039425,8e-07,96352.0,96351.0,0.48341921]
[1733152039693,0.0008649,96386.0,96362.0,0.58055]
[1733152039929,0.0008649,96386.0,96362.0,0.91881668]
[1733152040372,2e-08,96363.0,96362.0,0.91881668]
[1733152040873,0.0008649,96386.0,96385.0,0.207501]
[1733152041062,0.0008649,96386.0,96385.0,0.31218206]
[1733152041377,0.0008649,96386.0,96385.0,0.31034621]
[1733152041624,0.0008649,96386.0,96385.0,0.33334621]
[1733152042536,0.0008649,96386.0,96385.0,0.35064852]
[1733152042770,0.0008649,96386.0,96385.0,0.35764852]
[1733152043228,0.0008649,96386.0,96385.0,0.33464852]
[1733152043468,0.0008649,96386.0,96385.0,0.34034621]
[1733152043696,0.0008649,96386.0,96385.0,0.49934621]
[1733152043964,0.0008649,96386.0,96385.0,0.49034621]
[1733152044205,0.0008649,96386.0,96385.0,0.47634621]
[1733152045409,0.0008649,96386.0,96385.0,0.46934621]
[1733152045888,0.0008649,96386.0,96385.0,0.47734621]
[1733152046595,0.0008649,96386.0,96385.0,0.46834621]
[1733152047051,0.0008649,96386.0,96385.0,0.47734621]
[1733152049000,0.0008649,96386.0,96385.0,0.32734621]
[1733152050224,0.00714343,96386.0,96385.0,0.017]
[1733152051149,0.00714343,96386.0,96383.0,0.207503]
[1733152051387,0.0008649,96386.0,96385.0,0.208501]
[1733152051616,0.0008649,96386.0,96385.0,0.31534621]
[1733152052091,0.0008649,96386.0,96385.0,0.31434621]
[1733152053295,0.00714343,96386.0,96385.0,0.004]
[1733152053531,0.06240069,96386.0,96385.0,0.004]
[1733152053765,0.06293051,96386.0,96385.0,0.004]
[1733152054002,0.2643459,96386.0,96385.0,0.004]
[1733152054484,0.00627853,96363.0,96362.0,0.00017722]
[1733152054996,0.13841117,96363.0,96362.0,0.00017722]
[1733152056183,0.28170169,96363.0,96362.0,0.00017722]
[1733152056954,0.28270169,96363.0,96362.0,0.00017722]
[1733152057189,0.13941117,96363.0,96362.0,0.00017722]
[1733152057392,0.13841117,96363.0,96362.0,0.00017722]
[1733152057665,0.13941117,96363.0,96362.0,0.00017722]
[1733152057899,0.14141117,96363.0,96362.0,0.00017722]
[1733152058137,0.2677862,96363.0,96362.0,0.00017722]
[1733152058375,0.00627853,96345.0,96301.0,0.20768]
[1733152058615,0.02980835,96345.0,96322.0,0.207636]
[1733152058840,0.11642377,96345.0,96322.0,0.207636]
[1733152059069,0.11642377,96345.0,96328.0,0.207623]
[1733152059300,0.11642377,96345.0,96322.0,0.207636]
[1733152059528,0.11642377,96345.0,96327.0,0.207625]
[1733152059767,0.11642377,96345.0,96321.0,0.207637]
[1733152059768,0.32448095,96345.0,96321.0,0.207637]
[1733152060009,0.32448095,96345.0,96326.0,0.207628]
[1733152060245,0.11689395,96345.0,96331.0,0.207616]
[1733152060507,0.11589395,96345.0,96326.0,0.207628]
[1733152060743,0.11589395,96345.0,96324.0,0.207631]
[1733152060744,0.11842377,96345.0,96324.0,0.207631]
[1733152060982,0.46943916,96345.0,96318.0,0.0017236]
[1733152061219,0.00627853,96319.0,96318.0,0.0017236]
[1733152062836,0.01179628,96319.0,96318.0,0.00231213]
[1733152063064,0.09259628,96319.0,96318.0,0.00231213]
[1733152063279,0.26427131,96319.0,96318.0,0.00731213]
[1733152063546,0.26374149,96319.0,96318.0,0.00731213]
[1733152063802,0.46474149,96319.0,96318.0,0.01131213]
[1733152064024,0.25846296,96319.0,96318.0,0.01131213]
[1733152064255,0.26474149,96319.0,96318.0,0.01631213]
[1733152064485,0.26374149,96319.0,96318.0,0.00731213]
[1733152064719,0.26374149,96319.0,96318.0,0.00231213]
[1733152065402,0.28113131,96319.0,96318.0,0.00231213]
[1733152066090,0.28113131,96319.0,96318.0,0.00731213]
[1733152066308,0.13261775,96319.0,96318.0,0.01631213]
[1733152066535,0.01279628,96319.0,96318.0,0.01631213]
[1733152067002,0.00727853,96319.0,96318.0,0.01631213]
[1733152067246,0.01262349,96319.0,96318.0,0.01631213]
[1733152067732,0.001,96319.0,96318.0,0.01814953]
[1733152067957,0.001,96319.0,96318.0,0.01631213]
[1733152069334,0.00727853,96319.0,96318.0,0.01631213]
[1733152069800,0.0126223,96319.0,96318.0,0.01631213]
[1733152071456,0.03615212,96319.0,96318.0,0.01631213]
[1733152071904,0.03615212,96319.0,96318.0,0.01550836]
[1733152072376,0.03615212,96319.0,96318.0,1.01550836]
[1733152072615,0.0356223,96319.0,96318.0,1.01550836]
[1733152072832,0.03027853,96319.0,96318.0,1.01550836]
[1733152074055,0.03548774,96319.0,96318.0,1.01550836]
[1733152074870,0.01248774,96319.0,96318.0,1.01550836]
[1733152075517,0.00627853,96319.0,96318.0,1.00150836]
[1733152075721,0.01147045,96319.0,96318.0,1.00150836]
[1733152075957,0.01147045,96319.0,96318.0,1.00650836]
[1733152076151,0.01147045,96319.0,96318.0,1.00350836]
[1733152076485,0.00627853,96319.0,96318.0,1.00450836]
[1733152076896,0.01147045,96319.0,96318.0,1.00650836]
[1733152081434,0.00627853,96326.0,96318.0,1.00650836]
[1733152081676,0.0825,96349.0,96319.0,0.10468249]
[1733152081910,0.00627853,96342.0,96329.0,0.415241]
[1733152082137,0.0802,96363.0,96318.0,1.00650836]
[1733152082138,0.00627853,96334.0,96318.0,1.00650836]
[1733152082352,0.00627853,96320.0,96319.0,0.207643]
[1733152082557,0.00627853,96326.0,96325.0,0.20763]
[1733152083487,0.00627853,96326.0,96323.0,0.207633]
[1733152083711,0.001,96320.0,96319.0,0.006]
[1733152083930,0.00727853,96320.0,96319.0,0.006]
[1733152084156,0.11012374,96320.0,96319.0,0.006]
[1733152084848,0.12761541,96320.0,96319.0,0.006]
[1733152085522,0.12761541,96320.0,96318.0,1.00150836]
[1733152085523,0.21392153,96319.0,96318.0,1.00150836]
[1733152085719,0.00627853,96319.0,96318.0,1.00150836]
[1733152086398,0.0008652,96319.0,96318.0,1.00150836]
[1733152086594,0.00714373,96319.0,96318.0,1.00150836]
[1733152086826,0.00714373,96319.0,96318.0,1.00250836]
[1733152087036,0.00714373,96319.0,96318.0,1.00450836]
[1733152088777,0.01057682,96319.0,96318.0,1.00350836]
[1733152088992,0.00914373,96319.0,96318.0,1.00350836]
[1733152089233,0.00914373,96319.0,96318.0,1.00150836]
[1733152089429,0.01314373,96319.0,96318.0,1.00150836]
[1733152090090,0.0048652,96319.0,96318.0,1.00150836]
[1733152090328,0.0008652,96319.0,96318.0,1.00150836]
[1733152090554,0.0028652,96319.0,96318.0,1.00150836]
[1733152091663,0.0258652,96319.0,96318.0,1.00150836]
[1733152091907,0.0238652,96319.0,96318.0,1.00150836]
[1733152092128,0.0008652,96319.0,96318.0,1.00450836]
[1733152092351,0.0238652,96319.0,96318.0,1.00450836]
[1733152092867,0.0008652,96319.0,96318.0,1.00450836]
[1733152093311,0.0008652,96319.0,96318.0,1.00150836]
[1733152093511,0.0008652,96319.0,96318.0,1.10535357]
[1733152093748,0.0008652,96319.0,96318.0,1.11035357]
[1733152094156,0.0155313,96361.0,96318.0,1.11035357]
[1733152094157,0.00627853,96350.0,96329.0,0.207621]
[1733152094358,0.00627853,96351.0,96329.0,0.39136621]
[1733152094595,0.00627853,96345.0,96329.0,0.39136621]
[1733152094799,0.00627853,96345.0,96329.0,0.42330927]
[1733152095240,0.00627853,96340.0,96329.0,0.31046621]
[1733152095465,0.123,96330.0,96329.0,0.31046621]
[1733152095932,0.123,96330.0,96329.0,0.34240762]
[1733152096158,0.123,96330.0,96329.0,0.69240762]
[1733152096159,0.1,96330.0,96329.0,0.69240762]
[1733152096378,0.00627853,96366.0,96349.0,0.0145101]
[1733152096591,0.00627853,96361.0,96350.0,0.10468173]
[1733152096801,0.00627853,96364.0,96363.0,0.207546]
[1733152097019,0.00627853,96364.0,96350.0,0.10468173]
[1733152097270,0.00627853,96358.0,96350.0,0.10284521]
[1733152097466,0.00627853,96358.0,96354.0,0.207566]
[1733152097691,0.00645572,96358.0,96354.0,0.415132]
[1733152097907,0.023,96357.0,96354.0,0.415132]
[1733152098581,0.00017719,96358.0,96356.0,0.207563]
[1733152098776,0.00017719,96358.0,96357.0,0.10468166]
[1733152099462,0.15,96382.0,96357.0,0.10468166]
[1733152099687,0.00627853,96377.0,96376.0,0.20752]
[1733152100124,0.00627853,96377.0,96376.0,0.00032132]
[1733152100645,0.15627853,96382.0,96376.0,0.00032132]
[1733152100865,0.15,96382.0,96381.0,0.207509]
[1733152101068,0.0008649,96386.0,96385.0,0.207501]
[1733152101276,0.0008649,96386.0,96385.0,0.3125034]
[1733152101490,0.0008649,96386.0,96385.0,0.3106675]
[1733152102801,0.0008649,96386.0,96385.0,0.3096675]
[1733152103004,0.0008649,96386.0,96385.0,0.3076675]
[1733152103630,0.0018649,96386.0,96385.0,0.3256675]
[1733152103838,0.0248649,96386.0,96385.0,0.3166675]
[1733152104060,0.0018649,96386.0,96385.0,0.3618675]
[1733152104294,0.0018649,96386.0,96385.0,0.3708675]
[1733152104679,0.0018649,96386.0,96385.0,0.71458897]
[1733152104900,0.0018649,96386.0,96385.0,0.91426768]
[1733152106074,0.0018649,96386.0,96385.0,0.93150685]
[1733152108896,0.00154361,96386.0,96385.0,0.93150685]
[1733152110015,6.1e-07,96386.0,96385.0,0.92971129]
[1733152110926,0.0008649,96393.0,96392.0,0.75120747]
[1733152111133,0.0144057,96411.0,96410.0,0.207447]
[1733152111134,0.00714018,96411.0,96410.0,0.207447]
[1733152111366,0.00714018,96411.0,96410.0,0.31029221]
[1733152112236,0.0073175,96411.0,96410.0,0.31029221]
[1733152112438,0.0303175,96411.0,96410.0,0.31029221]
[1733152112653,0.0023175,96411.0,96410.0,0.31029221]
[1733152112852,0.0023175,96411.0,96410.0,0.31729221]
[1733152113059,0.0023175,96411.0,96410.0,0.32029221]
[1733152114159,0.0023175,96411.0,96410.0,0.32001249]
[1733152115272,0.0023175,96411.0,96410.0,0.51373396]
[1733152115514,3e-07,96417.0,96416.0,0.54372147]
[1733152115761,0.0008652,96432.0,96429.0,0.207405]
[1733152115988,2e-07,96432.0,96431.0,0.85396868]
[1733152116200,0.0008636,96448.0,96447.0,0.39372147]
[1733152116422,2e-07,96449.0,96448.0,0.39372147]
[1733152116641,0.0008639,96463.0,96459.0,0.40106247]
[1733152116857,0.0008639,96463.0,96462.0,0.10284521]
[1733152117065,0.0008639,96463.0,96462.0,0.29840088]
[1733152117306,0.0008639,96463.0,96462.0,0.77294628]
[1733152117543,0.00053838,96463.0,96462.0,0.77294628]
[1733152117744,0.00053838,96463.0,96462.0,0.76119501]
[1733152117745,3.8e-07,96463.0,96462.0,0.76119501]
[1733152117985,0.0009252,96483.0,96462.0,0.76119501]
[1733152117986,0.0009252,96483.0,96473.0,0.35]
[1733152118249,0.00145648,96474.0,96473.0,0.64656668]
[1733152118454,0.00145648,96474.0,96473.0,0.68991045]
[1733152118668,0.00145648,96474.0,96473.0,0.64656668]
[1733152118902,0.01992978,96488.0,96474.0,0.2]
[1733152119128,0.02010702,96488.0,96487.0,0.207281]
[1733152119381,0.02010702,96488.0,96487.0,0.10284521]
[1733152120575,0.023,96449.0,96446.0,0.207369]
[1733152120815,0.023,96449.0,96446.0,0.10284521]
[1733152121042,0.023,96454.0,96448.0,0.207365]
[1733152121243,0.00627853,96455.0,96449.0,0.10468006]
[1733152121444,0.023,96454.0,96451.0,0.207358]
[1733152121682,0.02798393,96454.0,96453.0,0.207354]
[1733152121921,0.00627853,96455.0,96440.0,0.20738]
[1733152122191,0.00627853,96455.0,96441.0,0.10284521]
[1733152122192,0.023,96447.0,96441.0,0.10284521]
[1733152122413,0.023,96447.0,96419.0,0.207426]
[1733152122414,0.023,96441.0,96440.0,0.10284521]
[1733152122840,0.023,96441.0,96419.0,0.207426]
[1733152122841,0.02788877,96441.0,96419.0,0.207426]
[1733152123101,0.023,96434.0,96420.0,0.10468045]
[1733152123330,0.023,96434.0,96433.0,0.207397]
[1733152123541,0.00627853,96438.0,96434.0,0.207394]
[1733152123770,0.023,96436.0,96434.0,0.207394]
[1733152123979,0.023,96436.0,96435.0,0.10284521]
[1733152124196,0.023,96441.0,96440.0,0.207382]
[1733152124648,0.023,96438.0,96436.0,0.207391]
[1733152124923,0.023,96438.0,96329.0,0.05105139]
[1733152124924,0.023,96440.0,96437.0,0.10284521]
[1733152125125,0.023,96440.0,96418.0,0.207428]
[1733152125126,0.023,96431.0,96418.0,0.207428]
[1733152125355,0.023,96431.0,96424.0,0.207417]
[1733152125564,0.023,96431.0,96425.0,0.10468049]
[1733152126211,0.023,96431.0,96427.0,0.207408]
[1733152126443,0.023,96431.0,96410.0,0.0017286]
[1733152126444,0.00627853,96447.0,96437.0,0.003]
[1733152126684,0.0821,96456.0,96437.0,0.003]
[1733152126685,0.02927853,96443.0,96442.0,0.207377]
[1733152126905,0.023,96442.0,96438.0,0.10284521]
[1733152127373,0.00627853,96432.0,96410.0,0.0017286]
[1733152127641,0.00627853,96432.0,96424.0,0.207416]
[1733152127865,0.207409,96428.0,96424.0,0.10284521]
[1733152128126,0.00627853,96416.0,96411.0,0.230444]
[1733152128366,0.00627853,96416.0,96413.0,0.20744]
[1733152128605,0.00627853,96416.0,96413.0,0.51772521]
[1733152128851,0.00627853,96416.0,96414.0,0.00183557]
[1733152129070,0.0791,96428.0,96415.0,0.10284521]
[1733152129288,0.0791,96428.0,96426.0,0.207411]
[1733152129539,0.0791,96428.0,96427.0,0.10284521]
[1733152130000,0.00627853,96434.0,96432.0,0.207398]
[1733152130243,0.0779,96441.0,96428.0,0.207408]
[1733152130244,0.00627853,96433.0,96428.0,0.207408]
[1733152130490,0.00627853,96433.0,96428.0,0.31025321]
[1733152130716,0.00627853,96431.0,96428.0,0.31025321]
[1733152130947,0.00627853,96431.0,96428.0,0.10284521]
[1733152131214,0.00627853,96426.0,96415.0,0.00059108]
[1733152131463,0.0779,96441.0,96415.0,0.00059108]
[1733152131464,0.00627853,96422.0,96416.0,0.31211467]
[1733152131679,0.00627853,96422.0,96416.0,0.10284521]
[1733152131896,0.00627853,96422.0,96416.0,0.31027721]
[1733152132113,0.00627853,96422.0,96416.0,0.10284521]
[1733152132881,0.00627853,96421.0,96416.0,0.10284521]
[1733152133152,0.00627853,96421.0,96416.0,0.10584521]
[1733152133627,0.00627853,96421.0,96416.0,0.10684521]
[1733152134387,0.00627853,96417.0,96416.0,0.004]
[1733152134613,0.00627853,96417.0,96416.0,0.001]
[1733152134614,0.08237853,96417.0,96416.0,0.001]
[1733152134830,0.08237853,96417.0,96411.0,0.023]
[1733152134831,0.28211253,96416.0,96411.0,0.023]
[1733152135074,0.02927853,96412.0,96411.0,0.023]
[1733152135334,0.00627853,96388.0,96380.0,0.00183608]
[1733152135566,0.207496,96387.0,96381.0,0.10284521]
[1733152135796,0.00627853,96388.0,96381.0,0.10284521]
[1733152136035,0.00627853,96388.0,96386.0,0.207497]
[1733152136265,0.00627853,96388.0,96386.0,0.00183612]
[1733152136495,0.00627853,96388.0,96381.0,0.14439021]
[1733152136496,0.00627853,96408.0,96387.0,0.10468133]
[1733152136717,0.00627853,96405.0,96387.0,0.10468133]
[1733152136965,0.0779,96411.0,96408.0,0.207451]
[1733152137187,0.0779,96411.0,96408.0,0.414902]
[1733152137419,0.00627853,96409.0,96408.0,0.207451]
[1733152137697,0.0468,96428.0,96408.0,0.207451]
[1733152137698,0.00627853,96440.0,96408.0,0.10284521]
[1733152137945,0.075,96444.0,96408.0,0.10284521]
[1733152137946,0.075,96444.0,96424.0,0.10284521]
[1733152138170,0.00627853,96456.0,96455.0,0.20735]
[1733152138421,0.045,96466.0,96455.0,0.20735]
[1733152138422,0.00627853,96465.0,96456.0,0.207348]
[1733152138643,0.00627853,96470.0,96458.0,0.207344]
[1733152138869,0.00059108,96466.0,96459.0,0.10284521]
[1733152139086,0.00059108,96466.0,96465.0,0.207329]
[1733152139320,0.00059108,96466.0,96465.0,0.31017421]
[1733152139771,0.00059108,96466.0,96465.0,0.30617421]
[1733152140229,0.00059108,96466.0,96465.0,0.30317421]
[1733152140483,0.00059108,96466.0,96465.0,0.10984521]
[1733152140708,0.00059108,96466.0,96465.0,0.10467975]
[1733152142198,0.00059108,96466.0,96465.0,0.11867975]
[1733152142674,0.00059108,96466.0,96441.0,0.19372147]
[1733152142675,0.00627853,96463.0,96434.0,0.15]
[1733152142898,0.00627853,96463.0,96454.0,0.20735]
[1733152143116,0.00627853,96463.0,96455.0,0.10284521]
[1733152143343,0.00627853,96463.0,96456.0,0.207348]
[1733152143570,0.00059108,96466.0,96460.0,0.207338]
[1733152143848,0.00059108,96466.0,96465.0,0.001]
[1733152144509,0.00059108,96466.0,96465.0,0.10567979]
[1733152144938,0.00059108,96466.0,96465.0,0.10467979]
[1733152145402,0.00059108,96466.0,96465.0,0.10284521]
[1733152146100,0.00059108,96466.0,96465.0,0.10784521]
[1733152146353,0.00059108,96466.0,96465.0,0.005]
[1733152146563,0.00059108,96466.0,96465.0,0.009]
[1733152147050,0.00543081,96466.0,96465.0,0.11784521]
[1733152147295,0.00059108,96466.0,96465.0,0.11967979]
[1733152148486,0.00059108,96466.0,96465.0,0.31340126]
[1733152148700,0.00627853,96503.0,96487.0,0.207281]
[1733152148981,0.0766,96510.0,96487.0,0.207281]
[1733152148982,0.0766,96510.0,96487.0,0.31196032]
[1733152149235,0.02097132,96488.0,96487.0,0.31012621]
[1733152150100,0.02097132,96488.0,96487.0,0.31812621]
[1733152150843,0.02097132,96488.0,96487.0,0.31012621]
[1733152151618,0.02097132,96488.0,96487.0,0.31412621]
[1733152151828,0.02097132,96488.0,96487.0,0.50784768]
[1733152152050,0.02097132,96488.0,96487.0,0.31012621]
[1733152152272,0.02097132,96488.0,96487.0,0.32812621]
[1733152152490,0.02097132,96488.0,96487.0,0.31912621]
[1733152153211,0.02097132,96488.0,96487.0,0.31812621]
[1733152153455,0.02097132,96488.0,96487.0,0.32712621]
[1733152153692,0.02097132,96488.0,96487.0,0.31812621]
[1733152154101,0.02097132,96488.0,96487.0,0.32712621]
[1733152155085,0.02097132,96488.0,96487.0,0.31912621]
[1733152155295,0.02097132,96488.0,96487.0,0.31812621]
[1733152155774,0.02097132,96488.0,96487.0,0.31912621]
[1733152155990,0.02097132,96488.0,96487.0,0.66284768]
[1733152156205,0.02097132,96488.0,96487.0,0.67084768]
[1733152157456,0.02097132,96488.0,96487.0,0.87084768]
[1733152158347,0.02097132,96488.0,96487.0,0.90857593]
[1733152158575,3.2e-07,96488.0,96487.0,0.94304768]
[1733152158789,3.2e-07,96488.0,96487.0,0.98077593]
[1733152159005,3.2e-07,96488.0,96487.0,1.03179482]
[1733152159469,3.2e-07,96488.0,96487.0,1.02279482]
[1733152159706,3.2e-07,96488.0,96487.0,1.01479482]
[1733152159949,3.2e-07,96488.0,96487.0,0.97277593]
[1733152160163,3.2e-07,96488.0,96487.0,1.02279482]
[1733152160434,3.2e-07,96488.0,96487.0,1.03179482]
[1733152160901,3.2e-07,96488.0,96487.0,0.97177593]
[1733152161116,3.2e-07,96488.0,96487.0,0.94877593]
[1733152161332,3.2e-07,96488.0,96487.0,0.91104768]
[1733152161546,3.2e-07,96488.0,96487.0,0.85384768]
[1733152162010,3.2e-07,96488.0,96487.0,0.86284768]
[1733152162250,3.2e-07,96488.0,96487.0,0.366308]
[1733152162487,3.2e-07,96488.0,96487.0,0.31012621]
[1733152163217,3.2e-07,96488.0,96487.0,0.3452873]
[1733152163695,3.2e-07,96488.0,96487.0,0.3362873]
[1733152163929,3.2e-07,96488.0,96487.0,0.3452873]
[1733152164868,3.2e-07,96488.0,96487.0,0.32812621]
[1733152165586,0.0008652,96508.0,96487.0,0.32812621]
[1733152165587,0.00627853,96499.0,96491.0,0.00099968]
[1733152165826,0.00627853,96504.0,96503.0,0.207246]
[1733152166495,0.00627853,96504.0,96500.0,0.001834]
[1733152166705,0.00627853,96504.0,96501.0,0.10284521]
[1733152166940,0.0008652,96508.0,96501.0,0.10284521]
[1733152167163,0.00627853,96504.0,96503.0,0.005]
[1733152167389,0.00627853,96504.0,96503.0,0.003]
[1733152168588,0.0008652,96508.0,96504.0,0.414489]
[1733152168820,0.0008652,96508.0,96506.0,0.207241]
[1733152169088,0.0008652,96508.0,96506.0,0.10284521]
[1733152169330,0.00627853,96505.0,96475.0,0.15]
[1733152169579,0.00627853,96505.0,96503.0,0.005]
[1733152169810,0.25852753,96502.0,96501.0,0.002]
[1733152170023,0.21354953,96492.0,96491.0,0.00099968]
[1733152170663,0.00627853,96492.0,96491.0,0.00499968]
[1733152171157,0.207267,96494.0,96491.0,0.00499968]
[1733152171158,0.01705838,96494.0,96491.0,0.207273]
[1733152171355,0.0794,96502.0,96496.0,0.207262]
[1733152171575,0.00627853,96500.0,96497.0,0.10284521]
[1733152172247,0.00017704,96500.0,96497.0,0.31010421]
[1733152172969,0.00017704,96500.0,96497.0,0.10284521]
[1733152173186,0.00017704,96500.0,96498.0,0.206258]
[1733152173416,0.00017704,96500.0,96499.0,0.10284521]
[1733152174750,0.00017704,96500.0,96499.0,0.10467927]
[1733152175022,0.00017704,96500.0,96499.0,0.10867927]
[1733152175690,0.0008652,96508.0,96506.0,0.357241]
[1733152175992,0.0825,96546.0,96517.0,0.19372147]
[1733152176206,0.0825,96546.0,96523.0,0.46004921]
[1733152176437,0.00627853,96552.0,96523.0,0.46004921]
[1733152177136,0.00627853,96552.0,96523.0,0.45972221]
[1733152178038,0.00627853,96552.0,96523.0,0.46772221]
[1733152178707,0.00104,96524.0,96523.0,0.47672221]
[1733152179192,0.00104,96524.0,96523.0,0.67044368]
[1733152180148,0.00104,96524.0,96523.0,0.70211432]
[1733152180370,0.00104,96524.0,96523.0,0.87044368]
[1733152180583,0.0019038,96524.0,96523.0,0.87044368]
[1733152181233,0.0019038,96524.0,96523.0,0.67044368]
[1733152182087,0.0019038,96524.0,96523.0,0.70211482]
[1733152183809,0.63966755,96627.0,96523.0,0.70211482]
[1733152183810,6e-07,96529.0,96528.0,0.77391447]
[1733152184083,2e-07,96544.0,96543.0,0.60088247]
[1733152184297,2e-07,96544.0,96543.0,0.88539882]
[1733152184533,0.0762,96582.0,96557.0,0.20713]
[1733152184534,0.06897997,96582.0,96557.0,0.20713]
[1733152184748,0.00627853,96581.0,96574.0,0.207094]
[1733152184971,0.00627853,96581.0,96575.0,0.10284521]
[1733152185426,0.00059098,96582.0,96575.0,0.10284521]
[1733152185645,0.00059098,96582.0,96576.0,0.00183245]
[1733152185878,0.00059098,96582.0,96577.0,0.10284521]
[1733152186846,0.00627853,96581.0,96577.0,0.10284521]
[1733152187060,0.00059098,96582.0,96569.0,0.207104]
[1733152187061,0.00627853,96574.0,96569.0,0.207104]
[1733152187246,0.00627853,96574.0,96544.0,0.19372147]
[1733152187247,0.00627853,96574.0,96570.0,0.10284521]
[1733152188217,0.075,96576.0,96570.0,0.10284521]
[1733152188218,0.00627853,96571.0,96570.0,0.10284521]
[1733152188469,0.00627853,96571.0,96570.0,0.009]
[1733152188711,0.00627853,96571.0,96564.0,0.207115]
[1733152188934,0.00627853,96571.0,96570.0,0.002]
[1733152189378,0.00627853,96571.0,96566.0,0.207112]
[1733152189638,0.00627853,96571.0,96570.0,0.005]
[1733152190073,0.00627853,96571.0,96570.0,0.003]
[1733152190294,0.075,96576.0,96571.0,0.414202]
[1733152190525,0.075,96576.0,96572.0,0.10284521]
[1733152190770,0.075,96576.0,96575.0,0.207092]
[1733152190976,0.075,96576.0,96575.0,0.10278382]
[1733152191224,0.00627853,96574.0,96570.0,0.008]
[1733152191472,0.075,96576.0,96570.0,0.008]
[1733152191473,0.00627853,96571.0,96570.0,0.003]
[1733152191727,0.05577853,96571.0,96570.0,0.003]
[1733152192198,0.07877853,96571.0,96570.0,0.003]
[1733152192442,0.07877853,96571.0,96570.0,0.006]
[1733152192929,0.207118,96564.0,96542.0,0.15]
[1733152193140,0.00052982,96569.0,96543.0,0.10467817]
[1733152193374,0.00627853,96559.0,96546.0,0.207153]
[1733152193590,0.00627853,96558.0,96547.0,0.10284521]
[1733152194026,0.21340853,96558.0,96547.0,0.10284521]
[1733152194218,0.00627853,96557.0,96547.0,0.10284521]
[1733152195398,0.00627853,96557.0,96547.0,0.10684521]
[1733152195638,0.00627853,96553.0,96547.0,0.10684521]
[1733152195879,0.207142,96552.0,96547.0,0.10684521]
[1733152196122,0.26222853,96548.0,96547.0,0.004]
[1733152196355,0.05507853,96548.0,96547.0,0.004]
[1733152196568,0.05507853,96548.0,96547.0,0.006]
[1733152196801,0.5474,96609.0,96547.0,0.006]
[1733152196802,0.00627853,96566.0,96547.0,0.10884521]
[1733152197019,0.00017711,96548.0,96547.0,0.55487347]
[1733152197262,0.00017711,96548.0,96547.0,0.65371868]
[1733152197495,0.00017711,96548.0,96547.0,0.66271868]
[1733152197705,0.00017711,96548.0,96547.0,0.68171868]
[1733152197935,0.00017711,96548.0,96547.0,0.67671868]
[1733152198427,0.00017711,96548.0,96547.0,0.48299721]
[1733152198682,0.00017711,96548.0,96547.0,0.49199721]
[1733152199358,0.00017711,96548.0,96547.0,0.47399721]
[1733152199575,0.00017711,96548.0,96547.0,0.69071868]
[1733152200011,0.00017711,96548.0,96547.0,0.68571868]
[1733152200259,0.00017711,96548.0,96547.0,0.69471868]
[1733152200507,0.00017711,96548.0,96547.0,0.68571868]
[1733152201008,0.00017711,96548.0,96547.0,0.67671868]
[1733152201233,0.00017711,96548.0,96547.0,0.68571868]
[1733152201475,1.1e-07,96548.0,96547.0,0.69471868]
[1733152201678,1.1e-07,96548.0,96547.0,0.88571868]
[1733152202144,0.00627853,96584.0,96570.0,0.207103]
[1733152202414,0.0008639,96585.0,96570.0,0.3117807]
[1733152202415,0.00145553,96571.0,96570.0,0.3117807]
[1733152202621,0.00145553,96571.0,96570.0,0.45994821]
[1733152203562,0.00145553,96571.0,96570.0,0.46794821]
[1733152204442,0.00145553,96571.0,96570.0,0.31794821]
[1733152204645,0.00145553,96571.0,96570.0,0.11084521]
[1733152204859,0.00145553,96571.0,96570.0,0.017]
[1733152205109,0.00773406,96571.0,96570.0,0.017]
[1733152205311,0.0921459,96571.0,96570.0,0.017]
[1733152205777,0.0921459,96571.0,96560.0,1.0]
[1733152205778,0.207122,96561.0,96560.0,1.0]
[1733152205939,0.21340053,96561.0,96560.0,1.0]
[1733152206157,0.21824062,96561.0,96560.0,1.0]
[1733152206406,0.29774062,96561.0,96560.0,1.0]
[1733152207352,0.29774062,96561.0,96560.0,0.9199846]
[1733152207550,0.12974009,96561.0,96560.0,0.9199846]
[1733152207755,0.08434009,96561.0,96560.0,1.02382981]
[1733152208000,0.00484009,96561.0,96560.0,1.02382981]
[1733152208206,0.00145553,96571.0,96568.0,0.207107]
[1733152208471,0.00145553,96571.0,96570.0,0.207103]
[1733152208704,0.00145553,96571.0,96570.0,0.10284521]
[1733152209539,0.00245553,96571.0,96570.0,0.10284521]
[1733152209742,0.00245553,96571.0,96570.0,0.10467774]
[1733152209954,0.00145553,96571.0,96570.0,0.10467774]
[1733152210466,0.00245553,96571.0,96570.0,0.10467774]
[1733152210905,0.00145553,96571.0,96570.0,0.10467774]
[1733152211106,0.00145553,96571.0,96570.0,0.11167774]
[1733152211971,0.00145553,96571.0,96570.0,0.10984521]